bitfinex/quotes_ETHUSD_20260313
["timestamp","ask_amount","ask_price","bid_price","bid_amount"]
[1773420589939,3.4874491,2136.6,2135.6,3.53209466]
[1773420590459,0.001,2136.7,2135.7,5.07781771]
[1773420590658,0.001,2136.7,2135.8,3.53099466]
[1773420590868,0.001,2136.7,2135.9,1.21728545]
[1773420591164,0.001,2136.7,2136.0,3.4958831]
[1773420591865,0.001,2136.7,2135.8,1.17049079]
[1773420592074,0.001,2136.7,2135.9,0.04681867]
[1773420592402,0.001,2136.7,2135.9,3.4958831]
[1773420592527,0.001,2136.7,2136.0,0.04149064]
[1773420592854,0.001,2136.7,2136.0,1.17041198]
[1773420593026,0.001,2136.7,2136.0,1.5]
[1773420594725,4.83611679,2137.3,2136.1,3.54269738]
[1773420595051,4.83611679,2137.3,2136.3,3.4958831]
[1773420595052,4.67918104,2137.2,2136.3,3.4958831]
[1773420595628,1.16975481,2137.2,2136.3,3.4958831]
[1773420595833,4.83611679,2137.2,2136.3,3.4958831]
[1773420596254,1.16975481,2137.2,2136.4,3.54269081]
[1773420597245,3.90224225,2137.5,2136.4,4.71285443]
[1773420597448,3.90224225,2137.5,2136.4,4.66604672]
[1773420597643,3.90224225,2137.5,2136.5,1.5]
[1773420597954,3.90224225,2137.5,2136.3,3.4958831]
[1773420598265,3.90224225,2137.5,2136.3,4.9958831]
[1773420598471,3.66636198,2137.5,2136.4,3.4958831]
[1773420598671,3.66636198,2137.5,2136.3,1.5]
[1773420598962,3.66636198,2137.5,2136.3,4.9958831]
[1773420599167,4.83600734,2137.4,2136.4,1.21700055]
[1773420599362,4.83600734,2137.4,2136.4,4.71288365]
[1773420600164,3.66636198,2137.3,2136.4,3.4958831]
[1773420600364,3.66636198,2137.3,2136.5,1.5]
[1773420600847,3.66636198,2137.3,2136.2,4.66615962]
[1773420601053,3.66636198,2137.3,2136.2,4.9958831]
[1773420601367,4.83611679,2137.2,2136.2,6.16618009]
[1773420601575,4.83611679,2137.2,2136.3,0.0468099]
[1773420601776,4.83611679,2137.2,2136.2,6.16618009]
[1773420602075,1.16975481,2137.2,2136.3,3.542693]
[1773420602275,1.16975481,2137.2,2136.3,0.0468099]
[1773420602276,3.66636198,2137.1,2136.3,0.0468099]
[1773420602438,3.66636198,2137.1,2136.0,3.4958831]
[1773420602635,2.96632672,2137.2,2135.7,2.21203894]
[1773420602636,3.66636198,2136.8,2135.7,1.5]
[1773420603471,3.66636198,2136.6,2135.7,2.67056201]
[1773420603685,3.66636198,2136.6,2135.8,0.0011]
[1773420603967,1.16995822,2136.9,2135.8,3.54380396]
[1773420604365,1.16995822,2136.9,2136.0,3.4958831]
[1773420604535,1.16995822,2136.9,2136.1,3.54264045]
[1773420604739,1.17079877,2137.2,2136.2,3.4958831]
[1773420604961,1.17079877,2137.2,2136.4,3.4958831]
[1773420605245,1.17079877,2137.2,2136.5,1.501]
[1773420605443,1.17079877,2137.2,2136.5,2.6711198]
[1773420605444,0.001,2137.2,2136.5,2.6711198]
[1773420606267,0.001,2137.2,2136.5,6.1670029]
[1773420606951,0.001,2137.2,2136.3,3.38167784]
[1773420607149,3.66736198,2137.2,2136.2,6.1671416]
[1773420607351,1.16980955,2137.1,2136.2,6.1671416]
[1773420608045,1.16980955,2137.1,2136.3,3.4958831]
[1773420608868,1.16980955,2137.1,2136.5,3.4958831]
[1773420609259,1.16961197,2137.5,2136.5,3.4958831]
[1773420609439,1.16948121,2137.7,2136.7,4.66591164]
[1773420609639,1.16948121,2137.7,2136.8,1.502]
[1773420609640,3.66636198,2137.6,2136.8,1.502]
[1773420609840,5.50746821,2137.8,2136.9,3.4958831]
[1773420609841,1.99916484,2137.8,2136.9,3.4958831]
[1773420610574,1.99916919,2137.8,2136.9,3.4958831]
[1773420611079,0.82973523,2137.8,2136.9,3.4958831]
[1773420611279,1.99916649,2137.8,2136.9,3.4958831]
[1773420611566,1.99916649,2137.8,2137.0,3.4958831]
[1773420611776,3.66636198,2137.7,2137.1,1.503]
[1773420611945,1.99916649,2137.8,2137.1,1.503]
[1773420612360,1.99916649,2137.8,2137.1,4.9988831]
[1773420612551,1.99916205,2137.8,2137.2,3.4958831]
[1773420612757,0.82973523,2137.8,2137.2,3.4958831]
[1773420612949,1.99916964,2137.8,2137.2,3.4958831]
[1773420613265,0.82973523,2137.8,2137.3,1.504]
[1773420613573,1.16935267,2138.0,2137.4,4.66552846]
[1773420613774,4.6763385,2138.5,2137.5,3.4958831]
[1773420614145,3.66636198,2138.4,2137.3,2.67366321]
[1773420614473,3.66636198,2138.4,2137.4,1.504]
[1773420615644,1.16915306,2138.3,2137.5,1.505]
[1773420616064,1.16915306,2138.3,2137.3,4.66554631]
[1773420616272,1.16915306,2138.3,2137.6,1.505]
[1773420616762,1.16913654,2138.4,2137.6,1.505]
[1773420616970,4.83544568,2138.5,2137.4,3.4958831]
[1773420617140,3.66636198,2138.4,2137.4,3.4958831]
[1773420617345,3.66636198,2138.4,2137.2,1.16971805]
[1773420617346,3.66636198,2138.4,2137.5,1.505]
[1773420617666,0.001,2138.2,2137.6,1.505]
[1773420617967,0.001,2138.2,2137.4,1.16963564]
[1773420618168,0.001,2138.2,2137.5,1.505]
[1773420618378,3.66736198,2138.2,2137.5,1.505]
[1773420618583,3.66736198,2138.2,2137.3,1.506]
[1773420620302,3.66636198,2138.0,2136.8,1.16997379]
[1773420620581,3.66636198,2137.9,2136.9,1.506]
[1773420621756,3.53452086,2137.9,2137.0,3.48662174]
[1773420622411,4.70478328,2138.2,2137.2,3.48662174]
[1773420622583,4.67715966,2138.1,2137.2,3.48662174]
[1773420623483,3.53452086,2138.0,2136.6,5.69808385]
[1773420623782,3.53452086,2137.8,2136.9,1.507]
[1773420624374,1.16948121,2137.7,2136.7,4.65662708]
[1773420624573,1.16948121,2137.7,2136.8,1.508]
[1773420625090,4.67705251,2138.1,2136.9,3.48662174]
[1773420625766,1.17023547,2138.2,2137.1,3.48662174]
[1773420625967,1.17023547,2138.2,2137.3,3.48662174]
[1773420626275,1.17023547,2138.2,2137.4,1.55053653]
[1773420626474,1.17023547,2138.2,2137.5,1.16959064]
[1773420626680,1.17023547,2138.2,2137.6,0.04153264]
[1773420626875,1.17023547,2138.2,2137.6,1.509]
[1773420627396,0.001,2138.2,2137.6,1.509]
[1773420627578,0.001,2138.2,2137.6,4.99562174]
[1773420628563,4.67608288,2138.6,2137.8,3.48662174]
[1773420628776,1.16898905,2138.6,2137.8,3.48662174]
[1773420628979,1.16885099,2138.9,2137.8,3.48662174]
[1773420630658,1.16885099,2138.9,2138.0,3.48662174]
[1773420631081,3.53452086,2138.8,2138.1,1.511]
[1773420631466,3.53452086,2138.8,2137.7,3.48662174]
[1773420631674,3.53452086,2138.8,2137.8,1.512]
[1773420632959,4.70345525,2138.7,2137.8,2.68137468]
[1773420633164,3.53452086,2138.6,2137.8,2.68137468]
[1773420633570,3.53452086,2138.6,2137.5,4.6794602]
[1773420633571,3.53452086,2138.6,2137.5,0.0011]
[1773420633772,3.53452086,2138.6,2137.5,1.5131]
[1773420633965,3.53452086,2138.6,2137.5,2.68268592]
[1773420635173,4.70356458,2138.5,2137.5,2.68268592]
[1773420635902,4.70356458,2138.5,2137.5,6.16930766]
[1773420636665,4.70356458,2138.5,2137.6,3.48662174]
[1773420636666,1.16904372,2138.5,2137.6,3.48662174]
[1773420636895,3.53452086,2138.4,2137.5,1.17068592]
[1773420637215,3.53452086,2138.4,2137.6,1.513]
[1773420637502,1.16915306,2138.3,2137.7,1.16948121]
[1773420638401,4.67607236,2138.6,2137.7,4.65610295]
[1773420639389,4.70350991,2138.7,2137.7,4.65610295]
[1773420640311,4.70350991,2138.7,2137.8,3.48662174]
[1773420640988,3.53452086,2138.6,2137.9,1.514]
[1773420641383,1.16904372,2138.5,2138.0,1.16931711]
[1773420642393,1.16904372,2138.5,2138.1,1.514]
[1773420643517,4.67596191,2138.6,2138.1,1.514]
[1773420643693,4.67596191,2138.6,2137.9,1.16934086]
[1773420643894,4.67596191,2138.6,2138.0,1.515]
[1773420644942,3.53452086,2138.5,2137.9,1.515]
[1773420645609,1.16909839,2138.4,2137.9,2.68436543]
[1773420645783,1.16909839,2138.4,2138.0,0.04677268]
[1773420645984,4.70357059,2138.5,2138.0,0.04677268]
[1773420646184,4.70357059,2138.5,2137.9,1.515]
[1773420646386,4.70357059,2138.5,2138.0,1.515]
[1773420646709,4.67596799,2138.6,2138.1,0.04677049]
[1773420646710,1.16902946,2138.6,2138.1,0.04677049]
[1773420646893,1.16896429,2138.7,2138.1,0.04677049]
[1773420647096,8.07930415,2138.8,2138.1,3.34493225]
[1773420647097,4.57247508,2138.8,2138.1,3.34493225]
[1773420647431,1.16874095,2139.1,2138.1,6.00198727]
[1773420647727,3.40357375,2139.1,2138.3,3.29816176]
[1773420648020,3.40357375,2139.1,2138.2,1.16920774]
[1773420648225,3.40357375,2139.1,2138.2,4.4673695]
[1773420648389,3.40357375,2139.1,2138.2,1.16920774]
[1773420648718,3.40357375,2139.1,2138.1,1.1692239]
[1773420649598,3.40357375,2139.1,2138.1,4.46738566]
[1773420649798,3.40357375,2138.9,2138.1,4.46738566]
[1773420650719,3.40357375,2138.9,2138.2,0.0467683]
[1773420651092,8.00808195,2139.2,2138.2,3.59839501]
[1773420651317,8.00808195,2139.2,2138.2,3.55162671]
[1773420651503,3.33343421,2139.1,2138.2,3.55162671]
[1773420652452,1.16877045,2139.0,2138.3,4.72077977]
[1773420652801,4.50220466,2139.0,2138.3,4.72077977]
[1773420653212,4.50220466,2139.0,2138.0,8.40368488]
[1773420653213,3.33343421,2138.9,2138.1,3.55162671]
[1773420653409,3.33343421,2138.9,2138.2,1.515]
[1773420654531,1.16887974,2138.8,2138.2,2.68415525]
[1773420654908,1.16887974,2138.8,2138.3,3.55162671]
[1773420655608,4.67526737,2139.0,2138.3,3.55162671]
[1773420655912,4.67526737,2139.0,2138.2,2.68415525]
[1773420655913,3.33343421,2138.9,2138.2,2.68415525]
[1773420656935,3.33343421,2138.7,2138.2,1.515]
[1773420657131,3.33343421,2138.7,2137.7,1.17057951]
[1773420658236,3.33343421,2138.7,2137.8,1.516]
[1773420658917,4.50240536,2138.7,2137.9,1.16937181]
[1773420659118,1.16985531,2138.9,2138.0,3.55162671]
[1773420660342,1.16983303,2138.9,2138.0,3.55162671]
[1773420660513,4.50326724,2138.9,2138.0,3.55162671]
[1773420660840,4.50326724,2138.9,2138.1,1.516]
[1773420660841,3.33343421,2138.8,2138.1,1.516]
[1773420661536,3.33343421,2138.6,2138.1,1.516]
[1773420662123,1.16892355,2138.8,2138.1,2.68522519]
[1773420662321,1.16889324,2138.8,2138.2,3.55162671]
[1773420663544,0.001,2138.9,2138.4,3.55162671]
[1773420664544,7.37939567,2140.0,2138.4,3.55162671]
[1773420664545,3.33343421,2139.7,2138.4,3.55162671]
[1773420664732,3.33343421,2139.7,2138.3,2.96301625]
[1773420664733,3.33343421,2139.7,2138.7,3.31719317]
[1773420665046,3.33343421,2139.7,2138.6,3.55162671]
[1773420665545,1.16844269,2139.6,2138.8,3.55162671]
[1773420667033,1.16844269,2139.6,2138.9,1.519]
[1773420667349,3.33343421,2139.5,2138.6,1.519]
[1773420667552,3.33343421,2139.5,2138.0,1.542]
[1773420667553,3.33343421,2139.3,2138.0,4.72094382]
[1773420667852,3.33343421,2139.3,2138.4,1.519]
[1773420668144,3.33343421,2139.3,2138.0,4.72094382]
[1773420668145,3.33343421,2139.3,2137.7,3.55272671]
[1773420668334,3.33343421,2139.1,2137.8,1.519]
[1773420669615,3.33343421,2138.9,2137.9,1.16937181]
[1773420670442,3.33343421,2138.9,2138.5,0.0011]
[1773420671255,0.065536,2139.9,2138.7,3.55162671]
[1773420671452,3.33643421,2140.3,2139.2,0.504578]
[1773420671665,3.33643421,2140.3,2138.7,3.29561903]
[1773420671666,3.33343421,2139.9,2138.8,0.61974223]
[1773420671861,3.33343421,2139.9,2138.6,6.84575053]
[1773420671862,3.33343421,2139.9,2138.6,4.72057437]
[1773420672145,3.33343421,2139.9,2138.5,6.19721712]
[1773420672146,3.33343421,2139.8,2138.7,2.74703954]
[1773420672318,3.33343421,2139.8,2138.8,2.74703954]
[1773420672517,3.33343421,2139.8,2138.9,2.74703954]
[1773420672741,3.33343421,2139.8,2139.0,2.74646816]
[1773420672919,3.33343421,2139.6,2138.1,1.42809841]
[1773420673120,3.33343421,2139.4,2138.2,0.33617338]
[1773420673318,3.3801961,2139.3,2138.3,0.33617338]
[1773420673548,3.3801961,2139.3,2138.4,0.33617338]
[1773420673743,1.16866118,2139.2,2138.5,0.33617338]
[1773420673939,0.04676189,2139.1,2138.6,0.38293294]
[1773420674143,4.50204279,2139.3,2138.7,0.33617338]
[1773420674539,4.50204513,2139.3,2138.7,0.33617338]
[1773420675225,0.04676189,2139.2,2138.7,0.33617338]
[1773420675426,0.04676189,2139.2,2138.5,1.522]
[1773420675626,1.16871581,2139.1,2138.6,0.33611969]
[1773420675924,1.16871581,2139.1,2138.1,1.523]
[1773420675925,3.3801961,2139.0,2138.1,1.523]
[1773420676535,3.3801961,2139.0,2138.2,0.0467683]
[1773420677432,3.3801961,2139.0,2138.0,2.69328531]
[1773420677949,3.33343421,2138.8,2138.0,1.524]
[1773420678150,3.3801961,2138.8,2138.0,1.524]
[1773420678356,3.3801961,2138.8,2137.7,1.17057319]
[1773420678552,3.3801961,2138.8,2137.8,0.04677706]
[1773420679058,3.3801961,2138.8,2137.7,1.17057319]
[1773420679657,3.3801961,2138.8,2137.8,0.04677706]
[1773420680362,3.33343421,2138.6,2137.7,1.17054199]
[1773420680568,3.3801961,2138.6,2137.7,0.0011]
[1773420681171,3.3801961,2138.6,2137.7,1.17055169]
[1773420681352,3.3801961,2138.6,2137.7,0.0011]
[1773420681666,3.3801961,2138.6,2137.7,1.17057997]
[1773420682490,4.25008783,2138.4,2137.7,0.0011]
[1773420682651,4.25008783,2138.4,2137.5,0.0011]
[1773420683125,4.25008783,2138.3,2137.3,0.0011]
[1773420683932,6.01708783,2138.3,2137.3,0.0011]
[1773420684151,4.25008783,2138.2,2137.3,0.0011]
[1773420684452,4.25008783,2138.2,2137.9,0.0011]
[1773420684653,4.25008783,2137.8,2137.3,0.0011]
[1773420684961,4.25008783,2137.8,2137.6,0.0011]
[1773420685257,4.25008783,2137.8,2137.4,0.0011]
[1773420686435,4.25008783,2137.8,2137.3,0.0011]
[1773420686858,4.25008783,2137.6,2137.3,0.0011]
[1773420687954,2.63037379,2137.9,2137.3,0.0011]
[1773420687955,5.41946517,2137.9,2137.3,0.0011]
[1773420688260,4.25008783,2137.8,2137.3,0.0011]
[1773420688961,0.04676189,2137.9,2137.3,0.0011]
[1773420689332,1.21606793,2138.1,2137.3,0.0011]
[1773420689984,4.25008783,2138.0,2137.3,0.0011]
[1773420690165,4.29684972,2137.9,2137.3,0.0011]
[1773420691040,1.16942651,2137.8,2137.3,0.0011]
[1773420691354,0.04676189,2137.7,2137.3,0.0011]
[1773420692366,4.29684972,2137.7,2137.3,0.0011]
[1773420694557,5.46637479,2137.7,2137.3,0.0011]
[1773420694878,4.29684972,2137.7,2137.3,0.0011]
[1773420695572,5.46634473,2137.7,2137.3,0.0011]
[1773420696274,4.25008783,2137.6,2136.8,4.72647511]
[1773420696462,4.67792487,2137.9,2136.8,4.72647511]
[1773420696463,0.04676189,2137.5,2137.0,1.16986429]
[1773420696668,4.25008783,2138.2,2137.2,2.17626789]
[1773420696975,4.29684972,2138.1,2137.5,0.0011]
[1773420699076,5.46612137,2138.1,2137.5,0.0011]
[1773420699278,4.25008783,2138.0,2137.5,0.0011]
[1773420699443,4.25008783,2137.8,2137.5,0.0011]
[1773420699641,4.29684972,2137.7,2137.5,0.0011]
[1773420700086,4.29684972,2137.7,2137.0,1.17094212]
[1773420700657,4.29684972,2137.7,2137.0,0.0011]
[1773420700874,4.25008783,2137.5,2137.0,0.0011]
[1773420701189,0.04676189,2137.5,2137.0,0.0011]
[1773420701398,0.04676189,2137.7,2137.0,0.0011]
[1773420701690,4.25008783,2137.8,2137.0,2.15538885]
[1773420701994,0.04676189,2137.7,2137.1,0.04679238]
[1773420702158,0.04676189,2137.7,2137.1,2.19663305]
[1773420702356,4.29684972,2138.0,2137.1,2.19663305]
[1773420702556,4.29684972,2138.0,2137.1,2.14984067]
[1773420703078,4.29684972,2138.0,2137.2,1.216545]
[1773420703257,4.29684972,2138.0,2137.2,4.87392855]
[1773420703453,0.29676189,2138.1,2137.3,2.14538355]
[1773420703669,0.29676189,2138.1,2137.4,0.04678581]
[1773420703996,0.29676189,2138.1,2137.3,2.14538355]
[1773420704660,0.04676189,2138.0,2137.3,2.14538355]
[1773420705054,0.25,2138.1,2137.5,2.13643058]
[1773420705269,0.29676189,2138.2,2137.5,2.13643058]
[1773420706271,1.46596999,2138.2,2137.5,2.13643058]
[1773420706473,0.29676189,2138.2,2137.5,2.13643058]
[1773420707059,0.29676189,2138.2,2137.6,1.16953592]
[1773420709095,0.29676189,2138.2,2137.6,1.21631735]
[1773420709793,0.29676189,2138.2,2137.7,2.12058273]
[1773420710089,0.25,2138.2,2137.7,2.12058273]
[1773420710288,0.04676189,2138.3,2137.7,2.12058273]
[1773420710781,0.04676189,2138.3,2137.8,1.51]
[1773420711266,0.04676189,2138.3,2137.9,1.16937181]
[1773420711667,5.39228773,2138.3,2137.9,1.16937181]
[1773420711868,5.39228773,2138.3,2137.8,2.67938877]
[1773420715389,5.39229444,2138.3,2137.8,2.67938877]
[1773420716790,4.22313202,2138.3,2137.8,2.67938877]
[1773420717102,5.39230411,2138.3,2137.8,2.67938877]
[1773420717304,4.22313202,2138.3,2137.8,2.67938877]
[1773420717509,5.39228605,2138.3,2137.8,2.67938877]
[1773420718498,4.22313202,2138.3,2137.8,2.72616583]
[1773420718795,1.21591779,2138.3,2137.8,6.96246358]
[1773420718986,0.04676189,2138.3,2137.8,4.8819785]
[1773420719189,4.17637013,2138.2,2137.6,2.67949912]
[1773420719393,1.21593429,2138.3,2137.6,2.67949912]
[1773420719394,4.22313202,2138.1,2137.6,2.67949912]
[1773420721206,5.39240086,2138.1,2137.6,2.67949912]
[1773420721404,4.22313202,2138.1,2137.6,2.67949912]
[1773420721702,4.22313202,2138.3,2137.7,2.11332734]
[1773420722001,4.17637013,2138.3,2137.7,4.31591707]
[1773420722201,4.22313202,2138.3,2137.7,4.31591707]
[1773420722406,4.22313202,2138.3,2137.7,4.26913783]
[1773420722702,4.22313202,2138.3,2137.7,2.0676481]
[1773420722876,4.22313202,2138.3,2137.8,2.68042651]
[1773420722877,0.001,2138.0,2137.8,2.68042651]
[1773420723073,0.001,2138.0,2137.7,1.17053963]
[1773420723296,0.001,2138.0,2137.8,1.511]
[1773420724909,0.001,2138.0,2137.9,1.16937181]
[1773420725901,0.04676189,2138.3,2137.9,1.21614668]
[1773420726283,4.42637013,2138.4,2137.9,1.21614668]
[1773420726497,4.17637013,2138.8,2138.0,4.24577128]
[1773420726702,0.04676189,2138.7,2138.1,2.20258973]
[1773420727220,0.04676189,2138.7,2138.2,4.88579747]
[1773420727382,4.22313202,2138.7,2138.2,2.68320774]
[1773420728890,4.17637013,2138.6,2138.1,3.37181407]
[1773420729090,0.04676189,2138.5,2138.2,1.515]
[1773420729294,1.21585651,2138.5,2138.2,1.515]
[1773420729593,0.04676189,2138.5,2138.2,2.6842036]
[1773420731208,0.04676189,2138.5,2138.2,1.515]
[1773420731432,4.17637013,2138.4,2138.0,2.20258973]
[1773420731724,4.17637013,2138.2,2137.9,1.517]
[1773420731889,4.22313202,2138.1,2137.9,1.517]
[1773420732093,4.22313202,2138.1,2137.7,0.0011]
[1773420732320,4.22313202,2138.1,2137.3,0.0011]
[1773420733112,4.17637013,2137.9,2137.3,0.0011]
[1773420733420,4.17637013,2137.7,2137.3,0.0011]
[1773420735220,4.17637013,2137.5,2137.3,0.0011]
[1773420735829,4.17637013,2137.5,2137.2,0.0011]
[1773420735830,4.17637013,2137.5,2137.0,0.0011]
[1773420736026,4.17637013,2137.5,2137.0,0.0022]
[1773420737314,4.17637013,2137.3,2137.0,0.0022]
[1773420739101,0.23881026,2137.8,2137.0,0.0022]
[1773420739102,5.34679782,2137.8,2137.0,1.99072261]
[1773420739424,0.04676189,2137.7,2137.2,1.16975481]
[1773420739728,1.21625036,2137.7,2137.2,1.16975481]
[1773420740105,5.39262049,2137.7,2137.2,1.16975481]
[1773420740415,4.17637013,2137.6,2137.3,0.0011]
[1773420740624,4.17637013,2137.6,2137.2,0.0011]
[1773420740940,0.001,2137.8,2137.2,2.02694693]
[1773420741113,0.001,2137.8,2137.3,0.0011]
[1773420741930,0.001,2137.8,2137.3,1.17080008]
[1773420742134,0.04776189,2137.8,2137.3,1.16970008]
[1773420742427,0.04776189,2137.8,2137.4,1.523]
[1773420744036,0.04776189,2137.8,2137.5,1.16959064]
[1773420744336,0.04776189,2137.8,2137.5,1.17069064]
[1773420744710,0.04776189,2137.8,2137.5,0.0011]
[1773420744919,5.20944113,2137.8,2137.5,0.0011]
[1773420745109,4.03897981,2137.7,2137.5,0.0011]
[1773420745311,0.04676189,2137.6,2137.5,0.0011]
[1773420750074,0.04676189,2137.6,2137.0,1.96851285]
[1773420750075,0.04676189,2137.6,2137.2,1.16971237]
[1773420750538,0.04676189,2137.6,2137.2,1.17081237]
[1773420750740,0.04676189,2137.6,2137.2,0.0011]
[1773420750946,0.001,2137.4,2137.2,0.0011]
[1773420751444,0.001,2137.4,2137.2,1.5271]
[1773420752122,0.001,2137.4,2137.2,0.0011]
[1773420752325,0.001,2137.4,2137.0,1.96851285]
[1773420752326,4.03997981,2137.4,2137.0,0.0011]
[1773420753221,4.03897981,2137.3,2137.0,0.0011]
[1773420753542,0.04776189,2137.4,2137.0,0.0011]
[1773420753735,0.001,2137.4,2137.0,1.92710356]
[1773420753947,0.04676189,2137.7,2137.1,1.92600356]
[1773420754248,0.04676189,2137.7,2137.2,1.96803159]
[1773420754448,4.03997981,2137.8,2137.3,1.527]
[1773420754649,0.04676189,2137.7,2137.3,1.527]
[1773420755422,0.04676189,2137.7,2137.4,1.16964536]
[1773420756956,0.04676189,2137.7,2137.3,2.69668966]
[1773420757821,0.04676189,2137.7,2137.0,1.90812564]
[1773420757822,4.0857417,2137.7,2137.0,1.90812564]
[1773420758128,4.03897981,2137.6,2137.1,1.16980955]
[1773420758331,4.0857417,2137.5,2137.1,1.16980955]
[1773420758621,0.04676189,2137.5,2137.1,3.11887957]
[1773420758828,0.04676189,2137.6,2137.2,1.90227764]
[1773420759355,0.04676189,2137.6,2137.1,1.16980955]
[1773420759662,0.04676189,2137.6,2137.2,0.04679019]
[1773420759955,4.03897981,2137.5,2137.0,2.70095364]
[1773420760252,4.03897981,2137.5,2137.0,4.90354337]
[1773420760453,1.21629844,2137.6,2137.0,1.5311]
[1773420760454,4.03897981,2137.3,2137.0,1.5311]
[1773420762230,4.03897981,2137.3,2137.0,2.70095835]
[1773420763353,0.04676189,2137.4,2137.2,0.0011]
[1773420763573,0.001,2137.8,2137.2,1.92650575]
[1773420763727,0.001,2137.8,2137.4,4.03446512]
[1773420764130,0.001,2137.8,2137.5,1.16959064]
[1773420764460,0.001,2137.8,2137.6,1.533]
[1773420766241,0.001,2137.8,2137.7,1.16948121]
[1773420767960,3.9584237,2138.2,2137.7,1.16948121]
[1773420768132,3.9584237,2138.6,2137.7,5.15316674]
[1773420768334,5.12746742,2138.5,2137.7,7.35575647]
[1773420768566,5.12746742,2138.5,2137.8,3.98368553]
[1773420768567,3.9584237,2138.5,2137.8,3.98368553]
[1773420769458,3.9584237,2138.5,2137.8,1.537]
[1773420769659,3.9584237,2138.5,2137.3,5.15338248]
[1773420769865,3.9584237,2138.5,2137.4,3.98368553]
[1773420770033,3.9584237,2138.5,2137.4,4.03047134]
[1773420770233,5.12751254,2138.5,2137.7,1.16948121]
[1773420770453,5.12751254,2138.5,2137.8,1.538]
[1773420771540,5.12749363,2138.5,2137.8,5.44054877]
[1773420771736,3.9584237,2138.5,2137.8,5.44054877]
[1773420771935,1.16902429,2138.6,2137.9,3.90254877]
[1773420772260,3.86203784,2138.7,2138.0,1.16931711]
[1773420772436,5.03100728,2138.7,2138.0,5.07186588]
[1773420774861,5.03080829,2139.0,2138.1,3.90254877]
[1773420776069,3.86203784,2138.9,2138.1,3.90254877]
[1773420776881,0.2373175,2139.3,2138.1,3.90254877]
[1773420776882,3.86203784,2139.3,2138.3,3.90254877]
[1773420777078,3.86203784,2139.3,2138.5,1.79470088]
[1773420777376,0.003,2139.5,2138.6,3.90254877]
[1773420777678,1.1715013,2139.5,2138.6,3.90254877]
[1773420777976,0.003,2139.5,2138.6,3.90254877]
[1773420778968,0.003,2139.5,2138.8,3.90254877]
[1773420779169,0.003,2139.5,2138.9,5.44554877]
[1773420779869,3.86503784,2139.5,2138.7,5.07148316]
[1773420780045,3.86503784,2139.5,2138.8,1.544]
[1773420780473,3.86503784,2139.5,2138.4,3.90254877]
[1773420780673,3.86503784,2139.5,2138.4,1.544]
[1773420780872,3.86203784,2139.3,2138.4,1.544]
[1773420781073,3.86203784,2139.3,2138.5,3.90254877]
[1773420781370,1.17153908,2139.5,2138.5,3.90254877]
[1773420781870,5.03357692,2139.5,2138.5,3.90254877]
[1773420782072,5.03357692,2139.5,2138.6,5.44654877]
[1773420782542,3.86203784,2139.4,2138.6,3.90254877]
[1773420782742,3.86203784,2139.4,2138.7,1.545]
[1773420782943,3.86203784,2139.2,2138.5,1.545]
[1773420783163,3.86203784,2139.2,2138.0,1.542]
[1773420783164,3.86203784,2139.2,2137.8,4.70213133]
[1773420783349,3.86203784,2139.2,2138.0,3.90254877]
[1773420783958,3.86203784,2139.2,2138.2,3.90254877]
[1773420784272,3.86203784,2139.2,2138.3,3.94931489]
[1773420784471,3.86203784,2139.2,2138.4,1.545]
[1773420785077,1.16871581,2139.1,2138.5,1.21580546]
[1773420785379,0.003,2139.5,2138.6,3.90254877]
[1773420785380,1.17150302,2139.5,2138.6,3.90254877]
[1773420786351,0.003,2139.5,2138.6,3.90254877]
[1773420786552,1.1715005,2139.5,2138.6,3.90254877]
[1773420787276,0.003,2139.5,2138.8,3.90254877]
[1773420787460,0.003,2139.5,2138.9,1.546]
[1773420789478,3.86503784,2139.5,2138.5,5.07158507]
[1773420789686,3.86503784,2139.5,2138.6,1.546]
[1773420789887,3.86203784,2139.4,2138.1,1.547]
[1773420790053,3.86203784,2139.4,2138.4,0.0011]
[1773420790254,0.001,2139.3,2138.4,0.0011]
[1773420790449,3.86203784,2139.2,2138.4,0.0011]
[1773420791481,3.86203784,2139.0,2138.4,0.0011]
[1773420792158,3.86203784,2139.0,2138.2,1.547]
[1773420792364,3.86203784,2139.0,2138.1,0.0011]
[1773420792982,3.86203784,2139.0,2138.1,1.1703203]
[1773420793184,3.86203784,2139.0,2138.1,1.21709079]
[1773420793372,1.16882509,2138.9,2138.1,1.21709079]
[1773420793578,5.03086293,2138.9,2138.1,1.21709079]
[1773420793795,3.86203784,2138.8,2137.8,4.67756212]
[1773420794090,3.86203784,2136.8,2135.5,0.0011]
[1773420794257,2.58215088,2136.9,2135.5,0.0011]
[1773420794258,3.86203784,2136.6,2135.5,0.0011]
[1773420794453,3.86203784,2136.6,2135.6,2.718727]
[1773420794652,2.22469391,2136.2,2135.7,0.04682305]
[1773420794889,2.22469391,2136.2,2135.9,10.64579747]
[1773420794890,2.78086088,2136.1,2135.9,10.64579747]
[1773420795183,2.78086088,2136.0,2135.6,2.718727]
[1773420795376,2.78086088,2135.9,2135.7,0.04682305]
[1773420795567,2.22469391,2136.4,2135.6,2.718727]
[1773420795768,3.20981805,2136.3,2135.7,0.04682305]
[1773420796079,2.77616131,2136.2,2135.7,0.04682305]
[1773420796281,3.33706428,2136.7,2135.7,0.04682305]
[1773420796282,7.50934495,2137.3,2136.2,0.90102324]
[1773420796482,5.56177381,2137.7,2136.3,3.94935866]
[1773420796483,3.33706428,2137.7,2136.3,3.94935866]
[1773420796684,0.43292312,2137.6,2136.5,3.90254877]
[1773420796984,0.22878334,2137.7,2136.6,3.94935208]
[1773420797182,0.68461637,2137.6,2136.6,3.94935208]
[1773420797398,0.68461637,2137.6,2136.8,8.32110356]
[1773420797689,0.68461637,2137.6,2136.8,1.16992915]
[1773420797892,0.68461637,2137.6,2137.0,8.32110356]
[1773420798096,0.68461637,2137.6,2137.1,1.549]
[1773420798298,1.16959064,2137.5,2136.5,1.549]
[1773420798481,1.16959064,2137.5,2136.6,0.04680333]
[1773420798797,4.54665421,2137.6,2136.6,0.04680333]
[1773420799094,5.71619315,2137.6,2136.6,0.04680333]
[1773420799300,4.54665421,2137.6,2136.6,0.04680333]
[1773420799502,5.71620122,2137.6,2136.5,2.71912554]
[1773420799862,5.71620122,2137.6,2136.7,8.32110356]
[1773420800359,4.294525,2137.5,2136.1,6.64693729]
[1773420800557,0.43248716,2137.4,2136.6,1.549]
[1773420800759,3.86203784,2137.5,2136.7,0.04680114]
[1773420801492,1.16970008,2137.3,2136.7,1.55]
[1773420802294,1.16970008,2137.3,2136.1,7.81726376]
[1773420802477,1.16970008,2137.3,2136.6,1.55]